fUSD/lending_fUSD_20260531
["ID","MTS","AMOUNT","RATE_DAILY","PERIOD"]
[423504423,1780174238000,-428.47,0.00011878,2]
[423504425,1780174238000,-491.74,0.00011988,2]
[423504426,1780174238000,-165.69,0.00011988,2]
[423504431,1780174238000,-428.47,0.00012129,2]
[423504429,1780174238000,-428.47,0.00012066,2]
[423504420,1780174238000,-428.47,0.00011815,2]
[423504428,1780174238000,-40520.54,0.00012055,2]
[423504427,1780174238000,-428.47,0.00012003,2]
[423504421,1780174238000,-500.0,0.00011867,2]
[423504416,1780174238000,-1453631.18162832,0.00011724,2]
[423504418,1780174238000,-234.0,0.00011813,2]
[423504430,1780174238000,-215.58360558,0.00012083,2]
[423504413,1780174238000,-150.0,0.00010528,2]
[423504415,1780174238000,-7414.22571905,0.00011724,2]
[423504419,1780174238000,-164.92,0.00011813,2]
[423504414,1780174238000,-229.0,0.00010629,2]
[423504412,1780174238000,-150.0,0.00010428,2]
[423504411,1780174238000,-150.0,0.00010328,2]
[423504409,1780174238000,-150.0,0.00010127,2]
[423504410,1780174238000,-150.0,0.00010228,2]
[423504417,1780174238000,-428.47,0.00011753,2]
[423504434,1780174238000,-428.47,0.00012192,2]
[423504422,1780174238000,-30971.46582449,0.00011873,2]
[423504435,1780174238000,-166.46,0.00012237,2]
[423504433,1780174238000,-2000.0,0.00012159,2]
[423504459,1780174238000,-150.0,0.00012426,2]
[423504456,1780174238000,-150.0,0.00012395,2]
[423504457,1780174238000,-150.0,0.00012402,2]
[423504458,1780174238000,-500.0,0.00012415,2]
[423504455,1780174238000,-2351.0,0.00012393,2]
[423504454,1780174238000,-150.0,0.0001239,2]
[423504451,1780174238000,-150.0,0.00012334,2]
[423504452,1780174238000,-150.0,0.00012365,2]
[423504449,1780174238000,-30971.46582449,0.00012322,2]
[423504450,1780174238000,-953.61,0.00012329,2]
[423504447,1780174238000,-150.0,0.00012304,2]
[423504453,1780174238000,-428.47,0.0001238,2]
[423504446,1780174238000,-150.0,0.00012304,2]
[423504437,1780174238000,-428.47,0.00012254,2]
[423504448,1780174238000,-428.47,0.00012317,2]
[423504438,1780174238000,-150.0,0.00012304,2]
[423504439,1780174238000,-150.34604901,0.00012304,2]
[423504443,1780174238000,-150.0,0.00012304,2]
[423504444,1780174238000,-150.0,0.00012304,2]
[423504436,1780174238000,-234.06,0.0001224,2]
[423504440,1780174238000,-150.0,0.00012304,2]
[423504441,1780174238000,-150.0,0.00012304,2]
[423504442,1780174238000,-150.0,0.00012304,2]
[423504445,1780174238000,-150.0,0.00012304,2]
[423504537,1780174239000,-150.0,0.00012988,2]
[423504535,1780174239000,-150.0,0.00012988,2]
[423504531,1780174239000,-150.0,0.00012972,2]
[423504529,1780174239000,-500.0,0.00012963,2]
[423504527,1780174239000,-150.0,0.00012942,2]
[423504524,1780174239000,-150.0,0.00012912,2]
[423504520,1780174239000,-150.0,0.00012902,2]
[423504518,1780174239000,-150.0,0.0001289,2]
[423504504,1780174239000,-150.0,0.00012817,2]
[423504498,1780174239000,-30971.46582449,0.00012772,2]
[423504502,1780174239000,-150.0,0.00012792,2]
[423504522,1780174239000,-150.0,0.00012912,2]
[423504542,1780174239000,-150.0,0.00013003,2]
[423504556,1780174239000,-150.0,0.00013124,2]
[423504544,1780174239000,-150.0,0.00013033,2]
[423504533,1780174239000,-1600.0,0.00012979,2]
[423504548,1780174239000,-150.0,0.00013064,2]
[423504546,1780174239000,-150.0,0.00013064,2]
[423504561,1780174239000,-150.0,0.00013159,2]
[423504552,1780174239000,-150.0,0.00013085,2]
[423504563,1780174239000,-150.0,0.00013183,2]
[423504568,1780174239000,-150.0,0.00013216,2]
[423504554,1780174239000,-150.0,0.00013094,2]
[423504550,1780174239000,-150.0,0.00013073,2]
[423504566,1780174239000,-150.0,0.00013185,2]
[423504559,1780174239000,-150.0,0.00013155,2]
[423504507,1780174239000,-150.0,0.00012821,2]
[423504540,1780174239000,-150.0,0.00012988,2]
[423504500,1780174239000,-150.0,0.0001279,2]
[423504461,1780174239000,-428.47,0.00012442,2]
[423504512,1780174239000,-150.0,0.00012851,2]
[423504460,1780174239000,-433.0,0.00012432,2]
[423504464,1780174239000,-150.0,0.00012475,2]
[423504462,1780174239000,-150.0,0.00012456,2]
[423504468,1780174239000,-150.0,0.00012517,2]
[423504470,1780174239000,-150.0,0.0001256,2]
[423504469,1780174239000,-150.0,0.00012547,2]
[423504466,1780174239000,-150.0,0.00012499,2]
[423504463,1780174239000,-150.0,0.00012456,2]
[423504467,1780174239000,-428.47,0.00012505,2]
[423504465,1780174239000,-150.0,0.00012486,2]
[423504472,1780174239000,-150.0,0.00012597,2]
[423504473,1780174239000,-150.0,0.00012608,2]
[423504471,1780174239000,-150.0,0.00012578,2]
[423504474,1780174239000,-150.0,0.00012608,2]
[423504477,1780174239000,-150.0,0.00012646,2]
[423504486,1780174239000,-150.0,0.00012695,2]
[423504475,1780174239000,-150.0,0.00012638,2]
[423504490,1780174239000,-150.0,0.00012729,2]
[423504484,1780174239000,-500.0,0.00012689,2]
[423504479,1780174239000,-150.0,0.00012646,2]
[423504482,1780174239000,-150.0,0.00012669,2]
[423504488,1780174239000,-150.0,0.00012699,2]
[423504492,1780174239000,-150.0,0.00012731,2]
[423504496,1780174239000,-150.0,0.0001276,2]
[423504494,1780174239000,-150.0,0.0001276,2]
[423504514,1780174239000,-150.0,0.00012881,2]
[423504509,1780174239000,-166.46,0.00012844,2]
[423504516,1780174239000,-164.92,0.00012887,2]
[423504574,1780174239000,-500.0,0.00013237,2]
[423504570,1780174239000,-150.0,0.00013216,2]
[423504576,1780174239000,-150.0,0.00013244,2]
[423504634,1780174239000,-445.0,0.00013425,2]
[423504651,1780174239000,-445.0,0.00013425,2]
[423504649,1780174239000,-403.39597363,0.00013425,2]
[423504664,1780174239000,-500.0,0.00013425,2]
[423504655,1780174239000,-445.0,0.00013425,2]
[423504657,1780174239000,-500.0,0.00013425,2]
[423504653,1780174239000,-445.0,0.00013425,2]
[423504656,1780174239000,-275.39800743,0.00013425,2]
[423504658,1780174239000,-500.0,0.00013425,2]
[423504659,1780174239000,-445.0,0.00013425,2]
[423504663,1780174239000,-500.0,0.00013425,2]
[423504662,1780174239000,-500.0,0.00013425,2]
[423504661,1780174239000,-500.0,0.00013425,2]
[423504665,1780174239000,-500.0,0.00013425,2]
[423504666,1780174239000,-500.0,0.00013425,2]
[423504670,1780174239000,-445.0,0.00013425,2]
[423504672,1780174239000,-457.0,0.00013425,2]
[423504676,1780174239000,-150.0,0.00013425,2]
[423504667,1780174239000,-500.0,0.00013425,2]
[423504668,1780174239000,-500.0,0.00013425,2]
[423504669,1780174239000,-500.0,0.00013425,2]
[423504674,1780174239000,-150.0,0.00013425,2]
[423504673,1780174239000,-150.0,0.00013425,2]
[423504671,1780174239000,-445.0,0.00013425,2]
[423504675,1780174239000,-150.0,0.00013425,2]
[423504677,1780174239000,-150.0,0.00013425,2]
[423504572,1780174239000,-30971.46582449,0.00013221,2]
[423504642,1780174239000,-445.0,0.00013425,2]
[423504630,1780174239000,-445.0,0.00013425,2]
[423504660,1780174239000,-500.0,0.00013425,2]
[423504638,1780174239000,-445.0,0.00013425,2]
[423504647,1780174239000,-500.0,0.00013425,2]
[423504589,1780174239000,-150.0,0.00013307,2]
[423504587,1780174239000,-150.0,0.00013281,2]
[423504581,1780174239000,-150.0,0.00013246,2]
[423504596,1780174239000,-150.0,0.00013337,2]
[423504591,1780174239000,-150.0,0.00013329,2]
[423504583,1780174239000,-150.31688556,0.00013262,2]
[423504585,1780174239000,-150.0,0.00013276,2]
[423504593,1780174239000,-150.0,0.00013329,2]
[423504598,1780174239000,-150.0,0.00013367,2]
[423504600,1780174239000,-150.0,0.00013367,2]
[423504602,1780174239000,-150.0,0.00013378,2]
[423504604,1780174239000,-150.0,0.00013398,2]
[423504613,1780174239000,-445.0,0.00013425,2]
[423504578,1780174239000,-250.0,0.00013245,2]
[423504617,1780174239000,-445.0,0.00013425,2]
[423504609,1780174239000,-445.0,0.00013425,2]
[423504644,1780174239000,-500.0,0.00013425,2]
[423504636,1780174239000,-445.0,0.00013425,2]
[423504632,1780174239000,-445.0,0.00013425,2]
[423504628,1780174239000,-445.0,0.00013425,2]
[423504626,1780174239000,-445.0,0.00013425,2]
[423504640,1780174239000,-445.0,0.00013425,2]
[423504621,1780174239000,-445.0,0.00013425,2]
[423504615,1780174239000,-445.0,0.00013425,2]
[423504619,1780174239000,-445.0,0.00013425,2]
[423504611,1780174239000,-445.0,0.00013425,2]
[423504606,1780174239000,-150.0,0.00013415,2]
[423504623,1780174239000,-445.0,0.00013425,2]
[423504721,1780174240000,-500.0,0.00013425,2]
[423504719,1780174240000,-500.0,0.00013425,2]
[423504720,1780174240000,-500.0,0.00013425,2]
[423504712,1780174240000,-500.0,0.00013425,2]
[423504718,1780174240000,-609.45801931,0.00013425,2]
[423504716,1780174240000,-500.0,0.00013425,2]
[423504715,1780174240000,-500.0,0.00013425,2]
[423504713,1780174240000,-500.0,0.00013425,2]
[423504714,1780174240000,-500.0,0.00013425,2]
[423504711,1780174240000,-500.0,0.00013425,2]
[423504723,1780174240000,-500.0,0.00013425,2]
[423504717,1780174240000,-500.0,0.00013425,2]
[423504725,1780174240000,-500.0,0.00013425,2]
[423504729,1780174240000,-150.0,0.00013425,2]
[423504724,1780174240000,-500.0,0.00013425,2]
[423504727,1780174240000,-500.0,0.00013425,2]
[423504728,1780174240000,-239.59554171,0.00013425,2]
[423504726,1780174240000,-500.0,0.00013425,2]
[423504730,1780174240000,-150.0,0.00013425,2]
[423504735,1780174240000,-234.0,0.00013425,2]
[423504734,1780174240000,-250.0,0.00013425,2]
[423504737,1780174240000,-207.11562252,0.00013425,2]
[423504731,1780174240000,-150.0,0.00013425,2]
[423504736,1780174240000,-234.0,0.00013425,2]
[423504733,1780174240000,-150.0,0.00013425,2]
[423504742,1780174240000,-150.0,0.000135,2]
[423504708,1780174240000,-500.0,0.00013425,2]
[423504722,1780174240000,-500.0,0.00013425,2]
[423504710,1780174240000,-500.0,0.00013425,2]
[423504678,1780174240000,-150.0,0.00013425,2]
[423504706,1780174240000,-150.0,0.00013425,2]
[423504679,1780174240000,-150.0,0.00013425,2]
[423504680,1780174240000,-250.0,0.00013425,2]
[423504682,1780174240000,-500.0,0.00013425,2]
[423504681,1780174240000,-209.03326579,0.00013425,2]
[423504683,1780174240000,-500.0,0.00013425,2]
[423504690,1780174240000,-500.0,0.00013425,2]
[423504689,1780174240000,-500.0,0.00013425,2]
[423504739,1780174240000,-150.0,0.00013459,2]
[423504684,1780174240000,-500.0,0.00013425,2]
[423504685,1780174240000,-500.0,0.00013425,2]
[423504686,1780174240000,-500.0,0.00013425,2]
[423504691,1780174240000,-500.0,0.00013425,2]
[423504692,1780174240000,-500.0,0.00013425,2]
[423504694,1780174240000,-500.0,0.00013425,2]
[423504693,1780174240000,-500.0,0.00013425,2]
[423504700,1780174240000,-199.01434305,0.00013425,2]
[423504695,1780174240000,-500.0,0.00013425,2]
[423504698,1780174240000,-500.0,0.00013425,2]
[423504702,1780174240000,-256.68494043,0.00013425,2]
[423504699,1780174240000,-500.0,0.00013425,2]
[423504697,1780174240000,-500.0,0.00013425,2]
[423504696,1780174240000,-500.0,0.00013425,2]
[423504703,1780174240000,-500.0,0.00013425,2]
[423504701,1780174240000,-500.0,0.00013425,2]
[423504705,1780174240000,-158.79341703,0.00013425,2]
[423504704,1780174240000,-500.0,0.00013425,2]
[423504707,1780174240000,-500.0,0.00013425,2]
[423504709,1780174240000,-500.0,0.00013425,2]
[423504732,1780174240000,-150.0,0.00013425,2]
[423504687,1780174240000,-500.0,0.00013425,2]
[423504740,1780174240000,-150.0,0.00013476,2]
[423504777,1780174240000,-500.0,0.00013698,2]
[423504778,1780174240000,-500.0,0.00013698,2]
[423504779,1780174240000,-500.0,0.00013698,2]
[423504776,1780174240000,-500.0,0.00013698,2]
[423504775,1780174240000,-500.0,0.00013698,2]
[423504780,1780174240000,-500.0,0.00013698,2]
[423504786,1780174240000,-500.0,0.00013698,2]
[423504783,1780174240000,-500.0,0.00013698,2]
[423504781,1780174240000,-500.0,0.00013698,2]
[423504788,1780174240000,-500.0,0.00013698,2]
[423504790,1780174240000,-500.0,0.00013698,2]
[423504784,1780174240000,-500.0,0.00013698,2]
[423504785,1780174240000,-500.0,0.00013698,2]
[423504774,1780174240000,-500.0,0.00013698,2]
[423504787,1780174240000,-420.45070713,0.00013698,2]
[423504789,1780174240000,-500.0,0.00013698,2]
[423504791,1780174240000,-500.0,0.00013698,2]
[423504792,1780174240000,-500.0,0.00013698,2]
[423504794,1780174240000,-500.0,0.00013698,2]
[423504793,1780174240000,-500.0,0.00013698,2]
[423504795,1780174240000,-500.0,0.00013698,2]
[423504800,1780174240000,-500.0,0.00013698,2]
[423504801,1780174240000,-500.0,0.00013698,2]
[423504798,1780174240000,-500.0,0.00013698,2]
[423504797,1780174240000,-500.0,0.00013698,2]
[423504796,1780174240000,-500.0,0.00013698,2]
[423504799,1780174240000,-500.0,0.00013698,2]
[423504741,1780174240000,-150.0,0.00013489,2]
[423504782,1780174240000,-500.0,0.00013698,2]
[423504773,1780174240000,-500.0,0.00013698,2]
[423504688,1780174240000,-500.0,0.00013425,2]
[423504772,1780174240000,-500.0,0.00013698,2]
[423504771,1780174240000,-500.0,0.00013698,2]
[423504743,1780174240000,-2000.0,0.0001351,2]
[423504744,1780174240000,-500.0,0.00013511,2]
[423504748,1780174240000,-150.0,0.00013574,2]
[423504747,1780174240000,-150.0,0.0001355,2]
[423504749,1780174240000,-150.0,0.0001358,2]
[423504746,1780174240000,-150.0,0.00013519,2]
[423504745,1780174240000,-150.0,0.00013519,2]
[423504750,1780174240000,-150.0,0.00013586,2]
[423504738,1780174240000,-150.0,0.00013428,2]
[423504753,1780174240000,-150.0,0.00013641,2]
[423504754,1780174240000,-736.0,0.00013649,2]
[423504752,1780174240000,-3292.0,0.00013632,2]
[423504755,1780174240000,-30971.46582449,0.0001367,2]
[423504751,1780174240000,-150.0,0.0001361,2]
[423504758,1780174240000,-150.0,0.00013671,2]
[423504756,1780174240000,-169.54995982,0.00013671,2]
[423504770,1780174240000,-500.0,0.00013698,2]
[423504769,1780174240000,-338.87344356,0.00013698,2]
[423504760,1780174240000,-150.0,0.00013671,2]
[423504763,1780174240000,-500.0,0.00013698,2]
[423504765,1780174240000,-500.0,0.00013698,2]
[423504768,1780174240000,-500.0,0.00013698,2]
[423504757,1780174240000,-150.0,0.00013671,2]
[423504764,1780174240000,-500.0,0.00013698,2]
[423504766,1780174240000,-500.0,0.00013698,2]
[423504759,1780174240000,-150.0,0.00013671,2]
[423504767,1780174240000,-500.0,0.00013698,2]
[423504762,1780174240000,-150.0,0.00013671,2]
[423504761,1780174240000,-150.0,0.00013671,2]
[423504837,1780174241000,-500.0,0.00013698,2]
[423504838,1780174241000,-500.0,0.00013698,2]
[423504835,1780174241000,-500.0,0.00013698,2]
[423504834,1780174241000,-500.0,0.00013698,2]
[423504832,1780174241000,-500.0,0.00013698,2]
[423504831,1780174241000,-551.39,0.00013698,2]
[423504833,1780174241000,-551.39,0.00013698,2]
[423504839,1780174241000,-500.0,0.00013698,2]
[423504829,1780174241000,-551.39,0.00013698,2]
[423504830,1780174241000,-500.0,0.00013698,2]
[423504840,1780174241000,-500.0,0.00013698,2]
[423504849,1780174241000,-500.0,0.00013698,2]
[423504845,1780174241000,-500.0,0.00013698,2]
[423504853,1780174241000,-500.0,0.00013698,2]
[423504843,1780174241000,-503.21523285,0.00013698,2]
[423504842,1780174241000,-387.24040857,0.00013698,2]
[423504846,1780174241000,-500.0,0.00013698,2]
[423504851,1780174241000,-500.0,0.00013698,2]
[423504844,1780174241000,-500.0,0.00013698,2]
[423504852,1780174241000,-512.05018733,0.00013698,2]
[423504850,1780174241000,-500.0,0.00013698,2]
[423504823,1780174241000,-551.39,0.00013698,2]
[423504841,1780174241000,-500.0,0.00013698,2]
[423504822,1780174241000,-500.0,0.00013698,2]
[423504812,1780174241000,-500.0,0.00013698,2]
[423504820,1780174241000,-500.0,0.00013698,2]
[423504802,1780174241000,-500.0,0.00013698,2]
[423504803,1780174241000,-500.0,0.00013698,2]
[423504804,1780174241000,-500.0,0.00013698,2]
[423504806,1780174241000,-500.0,0.00013698,2]
[423504807,1780174241000,-551.39,0.00013698,2]
[423504805,1780174241000,-500.0,0.00013698,2]
[423504808,1780174241000,-500.0,0.00013698,2]
[423504810,1780174241000,-500.0,0.00013698,2]
[423504809,1780174241000,-551.39,0.00013698,2]
[423504847,1780174241000,-549.93789521,0.00013698,2]
[423504811,1780174241000,-551.39,0.00013698,2]
[423504814,1780174241000,-500.0,0.00013698,2]
[423504815,1780174241000,-551.39,0.00013698,2]
[423504813,1780174241000,-551.39,0.00013698,2]
[423504816,1780174241000,-500.0,0.00013698,2]
[423504818,1780174241000,-500.0,0.00013698,2]
[423504825,1780174241000,-551.39,0.00013698,2]
[423504828,1780174241000,-500.0,0.00013698,2]
[423504824,1780174241000,-500.0,0.00013698,2]
[423504817,1780174241000,-551.39,0.00013698,2]
[423504827,1780174241000,-551.39,0.00013698,2]
[423504826,1780174241000,-500.0,0.00013698,2]
[423504819,1780174241000,-551.39,0.00013698,2]
[423504821,1780174241000,-551.39,0.00013698,2]
[423504848,1780174241000,-500.0,0.00013698,2]
[423504836,1780174241000,-500.0,0.00013698,2]
[423504856,1780174241000,-500.0,0.00013698,2]
[423504889,1780174241000,-500.0,0.00013698,2]
[423504888,1780174241000,-500.0,0.00013698,2]
[423504886,1780174241000,-500.0,0.00013698,2]
[423504879,1780174241000,-500.0,0.00013698,2]
[423504887,1780174241000,-500.0,0.00013698,2]
[423504885,1780174241000,-500.0,0.00013698,2]
[423504890,1780174241000,-500.0,0.00013698,2]
[423504884,1780174241000,-500.0,0.00013698,2]
[423504892,1780174241000,-500.0,0.00013698,2]
[423504891,1780174241000,-500.0,0.00013698,2]
[423504893,1780174241000,-500.0,0.00013698,2]
[423504895,1780174241000,-500.0,0.00013698,2]
[423504896,1780174241000,-500.0,0.00013698,2]
[423504898,1780174241000,-500.0,0.00013698,2]
[423504905,1780174241000,-500.0,0.00013698,2]
[423504901,1780174241000,-500.0,0.00013698,2]
[423504903,1780174241000,-500.0,0.00013698,2]
[423504902,1780174241000,-500.0,0.00013698,2]
[423504900,1780174241000,-500.0,0.00013698,2]
[423504897,1780174241000,-500.0,0.00013698,2]
[423504904,1780174241000,-500.0,0.00013698,2]
[423504899,1780174241000,-553.36280109,0.00013698,2]
[423504854,1780174241000,-500.0,0.00013698,2]
[423504883,1780174241000,-500.0,0.00013698,2]
[423504882,1780174241000,-500.0,0.00013698,2]
[423504894,1780174241000,-500.0,0.00013698,2]
[423504880,1780174241000,-500.0,0.00013698,2]
[423504859,1780174241000,-500.0,0.00013698,2]
[423504881,1780174241000,-500.0,0.00013698,2]
[423504855,1780174241000,-500.0,0.00013698,2]
[423504858,1780174241000,-500.0,0.00013698,2]
[423504857,1780174241000,-500.0,0.00013698,2]
[423504861,1780174241000,-500.0,0.00013698,2]
[423504860,1780174241000,-500.0,0.00013698,2]
[423504864,1780174241000,-500.0,0.00013698,2]
[423504862,1780174241000,-500.0,0.00013698,2]
[423504877,1780174241000,-500.0,0.00013698,2]
[423504865,1780174241000,-500.0,0.00013698,2]
[423504866,1780174241000,-500.0,0.00013698,2]
[423504863,1780174241000,-500.0,0.00013698,2]
[423504870,1780174241000,-500.0,0.00013698,2]
[423504876,1780174241000,-500.0,0.00013698,2]
[423504869,1780174241000,-500.0,0.00013698,2]
[423504867,1780174241000,-500.0,0.00013698,2]
[423504878,1780174241000,-500.0,0.00013698,2]
[423504868,1780174241000,-500.0,0.00013698,2]
[423504871,1780174241000,-500.0,0.00013698,2]
[423504873,1780174241000,-500.0,0.00013698,2]
[423504875,1780174241000,-500.0,0.00013698,2]
[423504874,1780174241000,-416.10004967,0.00013698,2]
[423504872,1780174241000,-500.0,0.00013698,2]
[423504942,1780174242000,-500.0,0.00013698,2]
[423504934,1780174242000,-500.0,0.00013698,2]
[423504945,1780174242000,-527.25,0.00013698,2]
[423504943,1780174242000,-500.0,0.00013698,2]
[423504947,1780174242000,-527.25,0.00013698,2]
[423504941,1780174242000,-500.0,0.00013698,2]
[423504949,1780174242000,-527.25,0.00013698,2]
[423504950,1780174242000,-527.25,0.00013698,2]
[423504938,1780174242000,-500.0,0.00013698,2]
[423504939,1780174242000,-500.0,0.00013698,2]
[423504948,1780174242000,-527.25,0.00013698,2]
[423504940,1780174242000,-500.0,0.00013698,2]
[423504946,1780174242000,-527.25,0.00013698,2]
[423504953,1780174242000,-527.25,0.00013698,2]
[423504952,1780174242000,-527.25,0.00013698,2]
[423504955,1780174242000,-527.25,0.00013698,2]
[423504964,1780174242000,-527.25,0.00013698,2]
[423504958,1780174242000,-527.25,0.00013698,2]
[423504957,1780174242000,-527.25,0.00013698,2]
[423504954,1780174242000,-527.25,0.00013698,2]
[423504963,1780174242000,-500.0,0.00013698,2]
[423504962,1780174242000,-527.25,0.00013698,2]
[423504956,1780174242000,-527.25,0.00013698,2]
[423504960,1780174242000,-527.25,0.00013698,2]
[423504961,1780174242000,-500.0,0.00013698,2]
[423504932,1780174242000,-500.0,0.00013698,2]
[423504951,1780174242000,-527.25,0.00013698,2]
[423504933,1780174242000,-500.0,0.00013698,2]
[423504907,1780174242000,-500.0,0.00013698,2]
[423504929,1780174242000,-500.0,0.00013698,2]
[423504959,1780174242000,-527.25,0.00013698,2]
[423504906,1780174242000,-500.0,0.00013698,2]
[423504908,1780174242000,-500.0,0.00013698,2]
[423504909,1780174242000,-500.0,0.00013698,2]
[423504910,1780174242000,-500.0,0.00013698,2]
[423504912,1780174242000,-500.0,0.00013698,2]
[423504913,1780174242000,-500.0,0.00013698,2]
[423504911,1780174242000,-500.0,0.00013698,2]
[423504914,1780174242000,-500.0,0.00013698,2]
[423504923,1780174242000,-500.0,0.00013698,2]
[423504922,1780174242000,-500.0,0.00013698,2]
[423504921,1780174242000,-500.0,0.00013698,2]
[423504915,1780174242000,-156.8613884,0.00013698,2]
[423504920,1780174242000,-500.0,0.00013698,2]
[423504917,1780174242000,-500.0,0.00013698,2]
[423504919,1780174242000,-500.0,0.00013698,2]
[423504918,1780174242000,-500.0,0.00013698,2]
[423504916,1780174242000,-500.0,0.00013698,2]
[423504935,1780174242000,-500.0,0.00013698,2]
[423504925,1780174242000,-500.0,0.00013698,2]
[423504937,1780174242000,-500.0,0.00013698,2]
[423504936,1780174242000,-500.0,0.00013698,2]
[423504927,1780174242000,-500.0,0.00013698,2]
[423504924,1780174242000,-500.0,0.00013698,2]
[423504926,1780174242000,-500.0,0.00013698,2]
[423504931,1780174242000,-500.0,0.00013698,2]
[423504930,1780174242000,-161.53446073,0.00013698,2]
[423504928,1780174242000,-500.0,0.00013698,2]
[423504965,1780174242000,-245.97684644,0.00013698,2]
[423504944,1780174242000,-527.25,0.00013698,2]
[423504968,1780174242000,-500.0,0.00013698,2]
[423504998,1780174242000,-2089.59,0.00013698,2]
[423504999,1780174242000,-2089.59,0.00013698,2]
[423505003,1780174242000,-2089.59,0.00013698,2]
[423504997,1780174242000,-2089.59,0.00013698,2]
[423505002,1780174242000,-2089.59,0.00013698,2]
[423505000,1780174242000,-2089.59,0.00013698,2]
[423505001,1780174242000,-2089.59,0.00013698,2]
[423505007,1780174242000,-2089.59,0.00013698,2]
[423505017,1780174242000,-500.0,0.00013698,2]
[423505018,1780174242000,-500.0,0.00013698,2]
[423505006,1780174242000,-2089.59,0.00013698,2]
[423505009,1780174242000,-295.37631974,0.00013698,2]
[423505010,1780174242000,-234.0,0.00013698,2]
[423505016,1780174242000,-500.0,0.00013698,2]
[423505011,1780174242000,-234.0,0.00013698,2]
[423505014,1780174242000,-500.0,0.00013698,2]
[423505015,1780174242000,-500.0,0.00013698,2]
[423505012,1780174242000,-234.0,0.00013698,2]
[423505013,1780174242000,-237.0,0.00013698,2]
[423505008,1780174242000,-500.0,0.00013698,2]
[423505020,1780174242000,-500.0,0.00013698,2]
[423505019,1780174242000,-500.0,0.00013698,2]
[423505022,1780174242000,-500.0,0.00013698,2]
[423505025,1780174242000,-500.0,0.00013698,2]
[423505023,1780174242000,-500.0,0.00013698,2]
[423504967,1780174242000,-500.0,0.00013698,2]
[423505026,1780174242000,-500.0,0.00013698,2]
[423504995,1780174242000,-2089.59,0.00013698,2]
[423504996,1780174242000,-2089.59,0.00013698,2]
[423505024,1780174242000,-500.0,0.00013698,2]
[423505005,1780174242000,-2089.59,0.00013698,2]
[423505004,1780174242000,-2089.59,0.00013698,2]
[423504969,1780174242000,-500.0,0.00013698,2]
[423504977,1780174242000,-500.0,0.00013698,2]
[423504970,1780174242000,-500.0,0.00013698,2]
[423504966,1780174242000,-500.0,0.00013698,2]
[423504976,1780174242000,-500.0,0.00013698,2]
[423504972,1780174242000,-500.0,0.00013698,2]
[423504975,1780174242000,-500.0,0.00013698,2]
[423504973,1780174242000,-500.0,0.00013698,2]